bitfinex/quotes_BTCUSD_20250127
["timestamp","ask_amount","ask_price","bid_price","bid_amount"]
[1737974103010,0.151749,98847.0,98846.0,0.00503691]
[1737974103216,0.301749,98847.0,98846.0,0.00013044]
[1737974104047,0.34970157,98847.0,98846.0,0.00013044]
[1737974105083,0.31984407,98847.0,98846.0,0.00013044]
[1737974105256,0.32384407,98847.0,98846.0,0.00013044]
[1737974105488,0.32484407,98847.0,98846.0,0.00013044]
[1737974105691,0.32084407,98847.0,98846.0,0.00013044]
[1737974105838,0.32084407,98847.0,98846.0,0.00027224]
[1737974106045,0.35439136,98847.0,98846.0,0.00027224]
[1737974106252,0.50439136,98847.0,98846.0,0.00027224]
[1737974106440,0.58032537,98847.0,98846.0,0.00027224]
[1737974106639,0.50439136,98847.0,98846.0,0.00027224]
[1737974106864,0.50339136,98847.0,98846.0,0.00027224]
[1737974107217,0.57629136,98847.0,98846.0,2.4e-07]
[1737974107627,0.57129136,98847.0,98846.0,2.4e-07]
[1737974107830,0.56702117,98847.0,98846.0,2.4e-07]
[1737974108050,0.31984407,98847.0,98846.0,2.4e-07]
[1737974108254,0.31984407,98847.0,98846.0,0.00503715]
[1737974108255,0.20191385,98847.0,98846.0,0.00503715]
[1737974108700,0.20491385,98847.0,98846.0,0.00503715]
[1737974108901,0.19991385,98847.0,98846.0,0.00503715]
[1737974109307,0.19991385,98847.0,98846.0,2.4e-07]
[1737974109520,0.19991385,98847.0,98846.0,0.00503715]
[1737974109716,0.16984407,98847.0,98846.0,0.00503715]
[1737974110147,0.17384407,98847.0,98846.0,0.00503715]
[1737974110552,0.16984407,98847.0,98846.0,0.00503715]
[1737974110795,0.02709507,98847.0,98844.0,0.00475414]
[1737974110987,0.02809507,98847.0,98845.0,0.00475414]
[1737974111217,0.02809507,98847.0,98834.0,0.0001418]
[1737974111218,0.15176,98840.0,98839.0,0.00475414]
[1737974111417,0.202334,98846.0,98834.0,0.0001418]
[1737974111418,0.202334,98846.0,98841.0,0.00475414]
[1737974111646,0.02816862,98847.0,98834.0,0.0001418]
[1737974111802,0.151763,98838.0,98837.0,0.00475414]
[1737974112145,0.20235,98839.0,98836.0,0.00475414]
[1737974112351,0.151761,98839.0,98838.0,0.00475414]
[1737974112551,0.151768,98835.0,98834.0,0.0001418]
[1737974112684,0.39911529,98835.0,98834.0,0.0001418]
[1737974113298,0.44726715,98835.0,98834.0,0.0001418]
[1737974114875,0.46056806,98835.0,98834.0,0.0001418]
[1737974116141,0.46756806,98835.0,98834.0,0.0001418]
[1737974116328,0.63421535,98835.0,98834.0,8e-07]
[1737974116537,0.71481535,98835.0,98834.0,8e-07]
[1737974116741,0.61746806,98835.0,98834.0,8e-07]
[1737974117366,0.61446806,98835.0,98834.0,8e-07]
[1737974117778,0.61746806,98835.0,98834.0,8e-07]
[1737974117989,0.61473453,98835.0,98834.0,8e-07]
[1737974118204,0.44446806,98835.0,98834.0,8e-07]
[1737974118404,0.43446806,98835.0,98834.0,8e-07]
[1737974118635,0.58446806,98835.0,98834.0,8e-07]
[1737974118880,0.44746806,98835.0,98834.0,8e-07]
[1737974119082,0.43946806,98835.0,98834.0,8e-07]
[1737974119489,0.59846806,98835.0,98834.0,8e-07]
[1737974120110,0.46126715,98835.0,98834.0,8e-07]
[1737974120316,0.46126715,98835.0,98834.0,0.00475494]
[1737974120317,0.20891986,98835.0,98834.0,0.00475494]
[1737974120791,0.21191986,98835.0,98834.0,0.00475494]
[1737974121248,0.20891986,98835.0,98834.0,0.00475494]
[1737974121450,0.20891986,98835.0,98834.0,8e-07]
[1737974121650,0.53746715,98835.0,98834.0,8e-07]
[1737974121782,0.60546715,98835.0,98834.0,8e-07]
[1737974121987,0.61541963,98835.0,98834.0,8e-07]
[1737974122393,0.60641963,98835.0,98834.0,8e-07]
[1737974122805,0.60841963,98835.0,98834.0,8e-07]
[1737974123125,0.58341963,98835.0,98834.0,8e-07]
[1737974123310,0.202397,98816.0,98813.0,0.00075]
[1737974123508,0.3018,98814.0,98813.0,0.00075]
[1737974123710,0.52244729,98814.0,98813.0,0.00075]
[1737974123953,0.47534729,98814.0,98813.0,0.00075]
[1737974124155,0.49607198,98814.0,98813.0,0.00075]
[1737974124774,0.46802384,98814.0,98813.0,0.00075]
[1737974125356,0.47002384,98814.0,98813.0,0.00075]
[1737974125769,0.44929915,98814.0,98813.0,0.00075]
[1737974125980,0.34995186,98814.0,98813.0,0.00075]
[1737974126939,0.35495186,98814.0,98813.0,0.00075]
[1737974127100,0.34995186,98814.0,98813.0,0.00075]
[1737974127499,0.35295186,98814.0,98813.0,0.00075]
[1737974127712,0.35495186,98814.0,98813.0,0.00075]
[1737974127908,0.45229915,98814.0,98813.0,0.00075]
[1737974128169,0.45029915,98814.0,98813.0,0.00075]
[1737974128673,0.45129915,98814.0,98813.0,0.0008916]
[1737974129109,0.45029915,98814.0,98813.0,0.0008916]
[1737974129317,0.44729915,98814.0,98813.0,0.0008916]
[1737974129495,0.44929915,98814.0,98813.0,0.0008916]
[1737974129740,0.45229915,98814.0,98813.0,0.0008916]
[1737974130124,0.44929915,98814.0,98813.0,0.0008916]
[1737974130535,0.45529915,98814.0,98813.0,0.0008916]
[1737974130736,0.44929915,98814.0,98813.0,0.0008916]
[1737974130939,0.44729915,98814.0,98813.0,0.0008916]
[1737974131141,0.45329915,98814.0,98813.0,0.0008916]
[1737974131358,0.45529915,98814.0,98813.0,0.0008916]
[1737974131947,0.46329142,98814.0,98813.0,0.0008916]
[1737974135062,0.54159142,98814.0,98813.0,0.0008916]
[1737974136984,0.58929142,98814.0,98813.0,0.0008916]
[1737974137862,0.58129142,98814.0,98813.0,0.0008916]
[1737974138064,0.58329142,98814.0,98813.0,0.0008916]
[1737974138271,0.59029142,98814.0,98813.0,0.0008916]
[1737974138492,0.54259142,98814.0,98813.0,0.0008916]
[1737974138697,0.54059142,98814.0,98813.0,0.0008916]
[1737974139159,0.46629142,98814.0,98813.0,0.0008916]
[1737974139495,0.46229142,98814.0,98813.0,0.0008916]
[1737974139888,0.46429142,98814.0,98813.0,0.0008916]
[1737974140095,0.45729142,98814.0,98813.0,0.0008916]
[1737974140594,0.46629142,98814.0,98813.0,0.0008916]
[1737974140807,0.45729142,98814.0,98813.0,0.0008916]
[1737974141213,0.46329142,98814.0,98813.0,0.0008916]
[1737974141619,0.45729142,98814.0,98813.0,0.0008916]
[1737974141818,0.45729142,98814.0,98813.0,0.00564574]
[1737974141819,0.20994413,98814.0,98813.0,0.00564574]
[1737974142177,0.20794413,98814.0,98813.0,0.00564574]
[1737974142582,0.20994413,98814.0,98813.0,0.00564574]
[1737974142757,0.05814413,98814.0,98774.0,0.202481]
[1737974142934,0.05814413,98814.0,98800.0,0.00014806]
[1737974142935,0.151809,98809.0,98800.0,0.00014806]
[1737974143335,0.00783818,98808.0,98800.0,0.00014806]
[1737974143548,0.20780004,98808.0,98800.0,0.00014806]
[1737974143847,0.00783818,98807.0,98800.0,0.00014806]
[1737974144415,0.00783818,98807.0,98803.0,0.151816]
[1737974144544,0.04815186,98806.0,98800.0,0.00014806]
[1737974144949,0.00792575,98805.0,98804.0,0.151815]
[1737974145237,0.00792575,98805.0,98804.0,0.29746229]
[1737974145658,0.04815186,98806.0,98804.0,0.0483]
[1737974146085,0.01809507,98805.0,98804.0,0.0483]
[1737974146417,0.17785026,98805.0,98804.0,0.0483]
[1737974146638,0.17785026,98805.0,98800.0,0.00014806]
[1737974146639,0.17482,98801.0,98800.0,0.00014806]
[1737974146865,0.43012899,98801.0,98800.0,0.00014806]
[1737974147093,0.44822406,98801.0,98800.0,0.00014806]
[1737974150597,0.45722406,98801.0,98800.0,0.00014806]
[1737974150815,0.46022406,98801.0,98800.0,0.00014806]
[1737974151021,0.45122406,98801.0,98800.0,0.00014806]
[1737974151222,0.33787677,98801.0,98800.0,0.00014806]
[1737974151573,0.33087677,98801.0,98800.0,0.00014806]
[1737974151781,0.15,98796.0,98787.0,0.151841]
[1737974151955,0.15,98796.0,98787.0,0.00049531]
[1737974152155,0.02593428,98795.0,98787.0,0.00049531]
[1737974152361,0.151839,98789.0,98787.0,0.00049531]
[1737974152556,0.202441,98794.0,98787.0,0.00049531]
[1737974152557,0.151836,98791.0,98787.0,0.00049531]
[1737974152758,0.00785452,98788.0,98787.0,0.00049531]
[1737974152946,0.01809507,98795.0,98789.0,0.202451]
[1737974153147,0.01002563,98818.0,98796.0,0.0001417]
[1737974153351,0.151826,98797.0,98796.0,0.0001417]
[1737974153564,0.151823,98799.0,98796.0,0.0001417]
[1737974154136,0.151825,98798.0,98796.0,0.0001417]
[1737974154336,0.151826,98797.0,98796.0,0.0001417]
[1737974154984,0.01879999,98798.0,98796.0,0.0001417]
[1737974155197,0.27217329,98797.0,98796.0,0.0001417]
[1737974155420,0.42217329,98797.0,98796.0,0.0001417]
[1737974155834,0.44097328,98797.0,98796.0,0.0001417]
[1737974157019,0.44297328,98797.0,98796.0,0.0001417]
[1737974158183,0.44297328,98797.0,98787.0,0.00049531]
[1737974158184,0.15184,98788.0,98787.0,0.00049531]
[1737974158313,0.27218729,98788.0,98787.0,0.00049531]
[1737974158743,0.35512902,98788.0,98787.0,0.00049531]
[1737974159126,0.64757462,98788.0,98787.0,3.1e-07]
[1737974159332,0.55132902,98788.0,98787.0,3.1e-07]
[1737974159601,0.55106077,98788.0,98787.0,3.1e-07]
[1737974159809,0.60291889,98788.0,98787.0,3.1e-07]
[1737974160017,0.173,98787.0,98764.0,0.0001416]
[1737974160321,0.450275,98765.0,98764.0,0.0001416]
[1737974160549,0.54762229,98765.0,98764.0,0.0001416]
[1737974160969,0.55524255,98765.0,98764.0,0.0001416]
[1737974161660,0.60410067,98765.0,98764.0,0.0001416]
[1737974161860,0.301886,98758.0,98750.0,0.00075]
[1737974162068,0.42223329,98758.0,98750.0,0.00075]
[1737974162275,0.42979626,98758.0,98750.0,0.00075]
[1737974162479,0.12791026,98758.0,98750.0,0.00075]
[1737974162685,0.15944897,98758.0,98750.0,0.00075]
[1737974163099,0.27608922,98758.0,98750.0,0.00075]
[1737974163300,0.42608922,98758.0,98750.0,0.00075]
[1737974163438,0.52568922,98758.0,98750.0,0.00075]
[1737974163871,0.44908922,98758.0,98750.0,0.00075]
[1737974164224,0.33014735,98758.0,98750.0,0.00075]
[1737974164539,0.32914735,98758.0,98750.0,0.00075]
[1737974165239,0.29908922,98758.0,98750.0,0.00075]
[1737974165407,0.48286469,98758.0,98750.0,0.00075]
[1737974165597,0.0695,98720.0,98658.0,0.5014713]
[1737974165776,0.0695,98720.0,98658.0,0.0001418]
[1737974165777,0.152015,98674.0,98658.0,0.0001418]
[1737974165987,0.24936229,98674.0,98658.0,0.0001418]
[1737974166422,0.25565213,98674.0,98658.0,0.0001418]
[1737974166616,0.00628984,98674.0,98660.0,0.15161102]
[1737974166821,0.00628984,98674.0,98673.0,0.37040479]
[1737974167023,0.04867266,98719.0,98673.0,0.21838779]
[1737974167175,0.09734729,98718.0,98674.0,0.09836049]
[1737974167379,0.09734729,98718.0,98677.0,0.01]
[1737974167380,0.00628984,98718.0,98677.0,0.01]
[1737974167622,0.01879999,98717.0,98687.0,1.52]
[1737974167825,0.01879999,98717.0,98691.0,0.02]
[1737974168032,0.01879999,98717.0,98702.0,0.202628]
[1737974168233,0.01879999,98717.0,98703.0,0.15197]
[1737974168423,0.00049266,98719.0,98685.0,0.5013295]
[1737974168424,0.151954,98714.0,98685.0,0.5013295]
[1737974168613,0.151954,98714.0,98686.0,0.09734729]
[1737974168842,0.00628984,98713.0,98688.0,0.202658]
[1737974169044,0.00628984,98713.0,98712.0,0.151957]
[1737974169286,0.00628984,98713.0,98712.0,0.29610429]
[1737974170370,0.00628984,98713.0,98712.0,0.79743379]
[1737974173765,0.00628984,98713.0,98712.0,0.7000865]
[1737974173985,0.00628984,98713.0,98712.0,0.5013295]
[1737974174225,0.00628984,98713.0,98712.0,0.6532865]
[1737974174618,0.00628984,98713.0,98712.0,0.75063379]
[1737974177286,0.00628984,98713.0,98712.0,0.6532865]
[1737974177504,0.00628984,98713.0,98712.0,0.75063379]
[1737974178649,0.00628984,98713.0,98712.0,0.75077549]
[1737974180862,0.00628984,98713.0,98712.0,0.76077549]
[1737974181450,0.00628984,98713.0,98712.0,2.26077549]
[1737974181861,0.00628984,98713.0,98712.0,2.25077549]
[1737974182059,0.00628984,98713.0,98712.0,2.26077549]
[1737974182261,0.00628984,98713.0,98712.0,2.25077549]
[1737974183073,0.00628984,98713.0,98712.0,2.26077549]
[1737974183448,0.00628984,98713.0,98712.0,2.25077549]
[1737974183806,0.00628984,98713.0,98712.0,0.75077549]
[1737974185659,0.00628984,98713.0,98712.0,0.24944599]
[1737974191109,0.00628984,98713.0,98712.0,0.0001417]
[1737974191305,0.1718183,98710.0,98699.0,0.151976]
[1737974191509,0.0198583,98710.0,98700.0,0.09734729]
[1737974191720,0.151963,98708.0,98700.0,0.09734729]
[1737974192090,0.151969,98705.0,98691.0,0.5013295]
[1737974192291,0.15814739,98704.0,98693.0,0.151986]
[1737974192578,0.00617739,98704.0,98691.0,0.5013295]
[1737974192792,0.152015,98674.0,98650.0,0.05666667]
[1737974193238,0.231715,98674.0,98651.0,0.202733]
[1737974193438,0.23774877,98674.0,98656.0,0.202723]
[1737974193648,0.23774877,98674.0,98653.0,0.152047]
[1737974193853,0.23774877,98674.0,98654.0,0.152045]
[1737974194067,0.23774877,98674.0,98654.0,0.152046]
[1737974194275,0.23774877,98674.0,98650.0,0.25940267]
[1737974194508,0.23824113,98674.0,98652.0,0.152049]
[1737974194732,0.23824113,98674.0,98650.0,0.05666667]
[1737974195145,0.23824113,98674.0,98654.0,0.152045]
[1737974195352,0.23824113,98674.0,98650.0,0.05666667]
[1737974195778,0.23824113,98674.0,98651.0,0.00101356]
[1737974196194,0.23824113,98674.0,98653.0,0.152046]
[1737974196429,0.23824113,98674.0,98650.0,0.05666667]
[1737974196631,0.23824113,98674.0,98653.0,0.152047]
[1737974196840,0.08722613,98674.0,98658.0,0.00115534]
[1737974197047,0.00752613,98674.0,98660.0,0.202715]
[1737974197230,0.00752613,98674.0,98665.0,0.202705]
[1737974197464,0.00752613,98674.0,98670.0,0.152021]
[1737974197676,0.00752613,98674.0,98665.0,0.202705]
[1737974197883,0.00149236,98674.0,98668.0,0.152023]
[1737974198088,0.00149236,98674.0,98665.0,0.202705]
[1737974198089,0.01030542,98674.0,98665.0,0.202705]
[1737974198289,0.01030542,98674.0,98665.0,0.152028]
[1737974198495,0.01030542,98674.0,98665.0,0.152029]
[1737974198913,0.01030542,98674.0,98660.0,0.202715]
[1737974199121,0.01030542,98674.0,98665.0,0.202705]
[1737974199326,0.01030542,98674.0,98660.0,0.202715]
[1737974199533,0.01030542,98674.0,98667.0,0.152025]
[1737974199952,0.00449236,98674.0,98664.0,0.202706]
[1737974200161,0.00449236,98674.0,98665.0,0.152029]
[1737974200369,0.01030542,98674.0,98664.0,0.202706]
[1737974200551,0.00449236,98674.0,98669.0,0.152022]
[1737974200772,0.00449236,98674.0,98673.0,0.09748909]
[1737974200979,0.00449236,98674.0,98673.0,0.24950609]
[1737974201827,0.00449236,98674.0,98673.0,0.25987122]
[1737974202056,0.00049236,98674.0,98673.0,0.25987122]
[1737974202489,0.00149236,98674.0,98673.0,0.24950609]
[1737974202695,0.00049236,98674.0,98673.0,0.24950609]
[1737974204834,0.00149236,98674.0,98673.0,0.24950609]
[1737974205047,0.00049236,98674.0,98673.0,0.24950609]
[1737974205272,0.00049236,98674.0,98673.0,0.09748909]
[1737974205483,0.15350736,98674.0,98673.0,0.0001418]
[1737974205698,0.15847588,98674.0,98673.0,0.0001418]
[1737974206132,0.00746088,98674.0,98673.0,0.0001418]
[1737974206361,0.00746088,98674.0,98673.0,0.1521588]
[1737974206575,0.00149236,98674.0,98673.0,0.24950609]
[1737974206998,0.00149236,98674.0,98673.0,0.76119228]
[1737974207459,0.00049236,98674.0,98673.0,0.76119228]
[1737974207880,0.00049236,98674.0,98673.0,0.75083559]
[1737974208309,0.00049236,98674.0,98673.0,0.59881859]
[1737974208518,0.00149236,98674.0,98673.0,0.0001418]
[1737974208725,0.15350736,98674.0,98673.0,0.0001418]
[1737974208938,0.1594443,98674.0,98673.0,0.0001418]
[1737974209144,0.1594443,98674.0,98673.0,0.0011418]
[1737974209354,0.1584443,98674.0,98673.0,0.0011418]
[1737974209553,0.1584443,98674.0,98673.0,0.0001418]
[1737974210404,0.1584443,98674.0,98650.0,0.25940167]
[1737974210405,0.24936429,98673.0,98650.0,0.25940167]
[1737974210612,0.202693,98671.0,98650.0,0.25940167]
[1737974210823,0.202693,98671.0,98655.0,0.152044]
[1737974211042,0.152033,98663.0,98652.0,0.152048]
[1737974211254,0.152029,98666.0,98653.0,0.152047]
[1737974211483,0.15203,98665.0,98654.0,0.152045]
[1737974211691,0.0057717,98665.0,98656.0,0.152043]
[1737974211897,0.0057717,98665.0,98650.0,0.25940167]
[1737974212109,0.24936429,98673.0,98655.0,0.152043]
[1737974212412,0.152038,98659.0,98650.0,0.04]
[1737974213046,0.15779692,98659.0,98650.0,0.04]
[1737974213458,0.15779692,98659.0,98658.0,0.0011418]
[1737974213663,0.00575892,98659.0,98658.0,0.0011418]
[1737974213864,0.00575892,98659.0,98658.0,0.0001418]
[1737974214086,0.152038,98659.0,98658.0,0.0001418]
[1737974214294,0.15779692,98659.0,98658.0,0.0001418]
[1737974214919,0.15879692,98659.0,98658.0,0.0001418]
[1737974215163,0.00575892,98659.0,98658.0,0.0001418]
[1737974215380,0.202712,98662.0,98658.0,0.0001418]
[1737974215558,0.20271,98664.0,98658.0,0.0001418]
[1737974215778,0.00575892,98659.0,98658.0,0.0001418]
[1737974215984,0.152023,98669.0,98658.0,0.0001418]
[1737974216185,0.45205429,98673.0,98658.0,0.0011418]
[1737974216186,0.001,98659.0,98658.0,0.0011418]
[1737974216466,0.45205429,98673.0,98658.0,0.0011418]
[1737974216714,0.152021,98671.0,98658.0,0.1531808]
[1737974216917,0.152021,98671.0,98658.0,0.0001418]
[1737974217124,0.00574024,98670.0,98658.0,0.09748909]
[1737974217344,0.00574024,98670.0,98669.0,0.152023]
[1737974217588,0.24936429,98673.0,98672.0,0.152018]
[1737974217804,0.24936429,98673.0,98672.0,0.75069479]
[1737974218448,0.24936429,98673.0,98672.0,0.59867679]
[1737974218698,0.24936429,98673.0,98659.0,0.152037]
[1737974218910,0.24936429,98673.0,98653.0,0.5013295]
[1737974219116,0.24936429,98673.0,98650.0,0.04]
[1737974219348,0.152038,98659.0,98650.0,0.04]
[1737974220161,0.152038,98659.0,98658.0,4.18e-05]
[1737974221096,0.24938529,98659.0,98658.0,4.18e-05]
[1737974221729,0.22727484,98670.0,98658.0,4.18e-05]
[1737974221730,0.202699,98668.0,98658.0,4.18e-05]
[1737974221854,0.24936429,98673.0,98658.0,4.18e-05]
[1737974221855,0.202697,98670.0,98658.0,4.18e-05]
[1737974222057,0.004,98659.0,98658.0,4.18e-05]
[1737974222257,0.152024,98668.0,98658.0,4.18e-05]
[1737974222532,0.24936429,98673.0,98659.0,0.09734729]
[1737974222742,0.40138229,98673.0,98659.0,0.09734729]
[1737974222972,0.24936429,98673.0,98659.0,0.09734729]
[1737974223183,0.24936429,98673.0,98667.0,0.152025]
[1737974223391,0.24936429,98673.0,98662.0,0.202712]
[1737974223588,0.24936429,98673.0,98663.0,0.24937929]
[1737974223820,0.24936429,98673.0,98663.0,0.09734729]
[1737974224029,0.24936429,98673.0,98672.0,0.152018]
[1737974224240,0.24936429,98673.0,98672.0,0.6533475]
[1737974224449,0.24936429,98673.0,98672.0,0.77069479]
[1737974224655,0.24936429,98673.0,98672.0,0.80369479]
[1737974224869,0.14417728,98673.0,98672.0,0.96387371]
[1737974225085,0.0198583,98710.0,98708.0,0.151963]
[1737974225297,0.0198583,98710.0,98709.0,0.151961]
[1737974225503,0.0198583,98710.0,98709.0,0.24930829]
[1737974226830,0.0198583,98710.0,98709.0,0.2496616]
[1737974227484,0.0198583,98710.0,98709.0,0.2506616]
[1737974228332,0.0198583,98710.0,98709.0,0.7869911]
[1737974228549,0.0198583,98710.0,98709.0,0.8069911]
[1737974228983,0.0198583,98710.0,98709.0,0.7739911]
[1737974229189,0.0198583,98710.0,98709.0,0.7539911]
[1737974229631,0.0198583,98710.0,98709.0,0.6020301]
[1737974230096,0.0198583,98710.0,98709.0,0.7529911]
[1737974230308,0.0198583,98710.0,98709.0,0.2516616]
[1737974230516,0.0198583,98710.0,98709.0,0.2526616]
[1737974230739,0.0198583,98710.0,98709.0,0.1007006]
[1737974230942,0.0198583,98710.0,98709.0,0.0977006]
[1737974231149,0.0198583,98710.0,98709.0,0.0997006]
[1737974231403,0.0198583,98710.0,98709.0,0.1007006]
[1737974231617,0.0198583,98710.0,98709.0,0.0997006]
[1737974231822,0.0198583,98710.0,98709.0,0.1007006]
[1737974232040,0.0198583,98710.0,98709.0,0.2526616]
[1737974232255,0.0198583,98710.0,98709.0,0.7639911]
[1737974232465,0.0198583,98710.0,98709.0,0.9569911]
[1737974232680,0.0198583,98710.0,98709.0,1.29161576]
[1737974232890,0.0198583,98710.0,98709.0,1.16106976]
[1737974233094,0.0198583,98710.0,98709.0,2.66106976]
[1737974233302,0.0198583,98710.0,98709.0,2.65906976]
[1737974233507,0.0198583,98710.0,98709.0,2.66106976]
[1737974233969,0.0774,98757.0,98747.0,0.151902]
[1737974234187,0.0774,98757.0,98748.0,0.09734729]
[1737974234618,0.0774,98757.0,98731.0,0.5013295]
[1737974234823,0.0774,98757.0,98732.0,0.09734729]
[1737974235252,0.0005,98757.0,98733.0,0.00101259]
[1737974235467,0.0005,98757.0,98734.0,0.09734729]
[1737974235644,0.202519,98756.0,98735.0,0.00101253]
[1737974235846,0.202519,98756.0,98736.0,0.09734729]
[1737974236089,0.202519,98756.0,98737.0,0.00101254]
[1737974236274,0.202523,98754.0,98738.0,0.09734729]
[1737974236482,0.151901,98749.0,98738.0,0.24926329]
[1737974236683,0.0015,98757.0,98738.0,0.09734729]
[1737974236930,0.0015,98757.0,98738.0,0.24926429]
[1737974237115,0.151902,98748.0,98738.0,0.24926429]
[1737974237547,0.20253,98751.0,98738.0,0.09734729]
[1737974237817,0.001,98754.0,98738.0,0.09734729]
[1737974238019,0.0005,98757.0,98738.0,0.09734729]
[1737974238020,0.151915,98739.0,98738.0,0.09734729]
[1737974238246,0.151911,98742.0,98738.0,0.09734729]
[1737974238659,0.202539,98746.0,98738.0,0.09734729]
[1737974238825,0.151909,98743.0,98738.0,0.09734729]
[1737974239234,0.151912,98741.0,98738.0,0.09734729]
[1737974239436,0.151914,98740.0,98738.0,0.09834729]
[1737974239642,0.151915,98739.0,98738.0,0.09834729]
[1737974239844,0.151924,98733.0,98732.0,0.00035331]
[1737974242668,0.0825,98739.0,98732.0,0.00035331]
[1737974242876,0.151917,98738.0,98732.0,0.0977006]
[1737974243086,0.202505,98763.0,98733.0,0.09836005]
[1737974243292,0.151884,98759.0,98735.0,0.405124]
[1737974243494,0.00029758,98764.0,98744.0,0.202542]
[1737974243694,0.15188,98763.0,98745.0,0.09835978]
[1737974243906,0.00029758,98764.0,98745.0,0.09734729]
[1737974244111,0.151893,98754.0,98745.0,0.09734729]
[1737974244350,0.151904,98746.0,98745.0,0.09734729]
[1737974244554,0.151901,98749.0,98745.0,0.09734729]
[1737974244766,0.004798,98757.0,98745.0,0.09734729]
[1737974245179,0.151904,98746.0,98745.0,0.09834729]
[1737974245643,0.1519,98749.0,98745.0,0.09834729]
[1737974245855,0.202519,98756.0,98745.0,0.09834729]
[1737974246058,0.000798,98757.0,98745.0,0.09834729]
[1737974246059,0.000798,98757.0,98745.0,0.09934729]
[1737974246266,0.151903,98748.0,98745.0,0.09934729]
[1737974246472,0.151903,98748.0,98745.0,0.09834729]
[1737974246677,0.151897,98751.0,98745.0,0.09834729]
[1737974246882,0.151902,98748.0,98745.0,0.09734729]
[1737974247082,0.202519,98756.0,98745.0,0.09734729]
[1737974247293,0.151899,98750.0,98745.0,0.09734729]
[1737974247713,0.1519,98750.0,98745.0,0.09734729]
[1737974247917,0.004798,98757.0,98745.0,0.09734729]
[1737974248126,0.001,98751.0,98745.0,0.09734729]
[1737974248339,0.001,98751.0,98746.0,0.202539]
[1737974248546,0.004798,98757.0,98746.0,0.202539]
[1737974248547,0.004798,98757.0,98747.0,0.09734729]
[1737974248749,0.004798,98757.0,98756.0,0.151889]
[1737974248962,0.000798,98757.0,98756.0,0.24923629]
[1737974250226,0.000798,98757.0,98756.0,0.09734729]
[1737974250440,0.152685,98757.0,98756.0,0.09734729]
[1737974250615,0.230498,98750.0,98749.0,0.5013295]
[1737974251262,0.152685,98757.0,98756.0,0.001]
[1737974251676,0.000798,98757.0,98756.0,0.001]
[1737974251913,0.151895,98752.0,98749.0,0.5013295]
[1737974252150,0.151891,98755.0,98750.0,0.09734729]
[1737974252363,0.000798,98757.0,98750.0,0.09734729]
[1737974252364,0.20252,98756.0,98750.0,0.09734729]
[1737974252608,0.20252,98756.0,98749.0,0.5013295]
[1737974252609,0.005798,98757.0,98749.0,0.5013295]
[1737974252854,0.151898,98750.0,98749.0,0.5013295]
[1737974253932,0.151922,98735.0,98732.0,0.00035331]
[1737974254113,0.151914,98740.0,98733.0,0.09734729]
[1737974254315,0.000798,98757.0,98733.0,0.09734729]
[1737974254730,0.151919,98737.0,98733.0,0.09734729]
[1737974254935,0.151916,98739.0,98733.0,0.09734729]
[1737974255140,0.151912,98741.0,98733.0,0.09734729]
[1737974255748,0.202546,98743.0,98733.0,0.09734729]
[1737974255961,0.15192,98736.0,98733.0,0.09734729]
[1737974256173,0.151923,98734.0,98733.0,0.001]
[1737974256586,0.24927029,98734.0,98733.0,0.001]
[1737974256845,0.37737029,98734.0,98733.0,0.001]
[1737974257053,0.151924,98733.0,98732.0,0.00035331]
[1737974257276,0.24927129,98733.0,98732.0,0.00035331]
[1737974258836,0.151924,98733.0,98732.0,0.00035331]
[1737974260018,0.153924,98733.0,98732.0,0.00035331]
[1737974261613,0.145808,98733.0,98732.0,0.00035331]
[1737974263654,0.002,98734.0,98732.0,0.0977006]
[1737974263856,0.002,98734.0,98733.0,0.09734729]
[1737974265289,0.202545,98744.0,98733.0,0.09734729]
[1737974265493,0.151912,98741.0,98733.0,0.09934729]
[1737974265730,0.202521,98755.0,98733.0,0.09934729]
[1737974265857,0.151923,98734.0,98733.0,0.002]
[1737974266294,0.202559,98737.0,98732.0,0.00035331]
[1737974266295,0.151924,98733.0,98732.0,0.00035331]
[1737974266503,0.09734729,98754.0,98732.0,0.00035331]
[1737974266504,0.15,98775.0,98732.0,0.0977006]
[1737974266861,0.002,98744.0,98739.0,0.151914]
[1737974267065,0.002,98744.0,98733.0,0.09734729]
[1737974267066,0.000798,98757.0,98740.0,0.09734729]
[1737974267274,0.151898,98751.0,98740.0,0.09734729]
[1737974267480,0.151899,98750.0,98740.0,0.09734729]
[1737974267893,0.000798,98757.0,98740.0,0.09734729]
[1737974268148,0.000798,98757.0,98748.0,0.151901]
[1737974268358,0.002,98756.0,98749.0,0.09835979]
[1737974268567,0.002,98756.0,98754.0,0.151892]
[1737974268785,0.002,98756.0,98755.0,0.09734729]
[1737974270272,0.000798,98757.0,98755.0,0.09834729]
[1737974271543,0.000798,98757.0,98755.0,0.09934729]
[1737974271971,0.000798,98757.0,98755.0,0.09734729]
[1737974272604,0.000798,98757.0,98756.0,0.151889]
[1737974272812,0.000798,98757.0,98756.0,0.09734729]
[1737974273824,0.000798,98757.0,98756.0,0.24923629]
[1737974274173,0.000798,98757.0,98756.0,0.09734729]
[1737974274373,0.000798,98757.0,98756.0,0.09834729]
[1737974274978,0.000798,98757.0,98756.0,0.09934729]
[1737974275215,0.000798,98757.0,98756.0,0.002]
[1737974276854,0.000798,98757.0,98756.0,0.09934729]
[1737974277061,0.000798,98757.0,98756.0,0.25123629]
[1737974277469,0.000798,98757.0,98756.0,0.09934729]
[1737974278088,0.000798,98757.0,98756.0,0.2522487]
[1737974278330,0.000798,98757.0,98756.0,0.25123629]
[1737974280329,0.000798,98757.0,98756.0,0.90256579]
[1737974280538,0.000798,98757.0,98756.0,1.38006079]
[1737974280749,1e-06,98757.0,98756.0,1.44656079]
[1737974280956,5.8e-07,98764.0,98763.0,0.301878]
[1737974281158,5.8e-07,98764.0,98763.0,0.90055479]
[1737974281365,5.8e-07,98764.0,98763.0,0.75055479]
[1737974282194,5.8e-07,98764.0,98763.0,0.7509081]
[1737974282398,5.8e-07,98764.0,98763.0,0.5990301]
[1737974282604,5.8e-07,98764.0,98763.0,0.6010301]
[1737974282822,5.8e-07,98764.0,98763.0,0.0997006]
[1737974283429,5.8e-07,98764.0,98763.0,0.0977006]
[1737974283902,0.15187758,98764.0,98763.0,0.00135331]
[1737974284325,5.8e-07,98764.0,98763.0,0.2495786]
[1737974285429,5.8e-07,98764.0,98763.0,0.2505786]
[1737974285841,5.8e-07,98764.0,98763.0,0.2495786]
[1737974286251,5.8e-07,98764.0,98763.0,0.2535786]
[1737974286459,5.8e-07,98764.0,98763.0,0.2495786]
[1737974286664,5.8e-07,98764.0,98763.0,0.4487786]
[1737974286868,5.8e-07,98764.0,98763.0,1.2725081]